bitfinex/quotes_SOLUSD_20240920
["timestamp","ask_amount","ask_price","bid_price","bid_amount"]
[1726792661333,7.68505144,142.14,142.12,0.344198]
[1726792661617,7.0344,142.16,142.12,0.344198]
[1726792661822,7.68515173,142.15,142.12,0.344198]
[1726792661995,7.68515173,142.14,142.12,0.344198]
[1726792662194,7.0358,142.13,142.12,0.344198]
[1726792662419,14.72089922,142.13,142.12,0.344198]
[1726792663813,7.68509922,142.13,142.12,0.344198]
[1726792666805,7.68509922,142.13,142.11,0.365495]
[1726792667004,7.0349,142.15,142.11,0.365495]
[1726792667005,7.68509922,142.12,142.11,0.365495]
[1726792667917,7.68565907,142.12,142.11,0.365495]
[1726792669929,7.68343154,142.12,142.11,0.365495]
[1726792670337,7.0349,142.15,142.11,0.365495]
[1726792670505,7.68431669,142.14,142.11,0.365495]
[1726792670706,7.68431669,142.13,142.11,17.956595]
[1726792670907,7.0339,142.17,142.11,17.956595]
[1726792671131,21.96125596,142.16,142.11,17.956595]
[1726792671319,13.51372571,142.15,142.11,17.956595]
[1726792671513,7.68496891,142.14,142.12,7.0361]
[1726792671712,7.68496891,142.13,142.12,7.0361]
[1726792671914,7.68496891,142.13,142.11,24.993195]
[1726792672236,7.0349,142.15,142.11,24.993195]
[1726792672526,7.6849434,142.14,142.11,24.993195]
[1726792672731,7.6849434,142.13,142.11,24.993195]
[1726792672937,7.0349,142.15,142.11,24.993195]
[1726792673229,7.68472052,142.14,142.11,24.993195]
[1726792673436,7.68596142,142.13,142.11,24.993195]
[1726792673635,7.0344,142.16,142.11,24.993195]
[1726792673931,13.51503304,142.15,142.11,24.993195]
[1726792674128,7.6861842,142.14,142.11,24.993195]
[1726792674314,7.6861842,142.13,142.11,0.365495]
[1726792674513,7.6861842,142.12,142.11,0.365495]
[1726792676729,7.6861842,142.12,142.11,7.402295]
[1726792677320,7.0334,142.18,142.12,17.5903]
[1726792677625,21.9694268,142.17,142.14,7.0352]
[1726792677827,21.9694268,142.16,142.13,7.0356]
[1726792678032,6.3016,142.21,142.12,24.6264]
[1726792678033,13.52160255,142.15,142.12,24.6264]
[1726792678338,7.69237284,142.14,142.12,24.6264]
[1726792678511,17.5812,142.2,142.12,24.6264]
[1726792678512,7.69237284,142.13,142.12,24.6264]
[1726792680125,7.69237284,142.13,142.12,17.5903]
[1726792680319,7.69273762,142.13,142.12,17.5903]
[1726792680733,7.69273762,142.13,142.12,24.6266]
[1726792681039,7.6950943,142.13,142.12,24.6266]
[1726792681938,7.6950943,142.13,142.12,41.0627]
[1726792682435,13.3339,142.21,142.15,17.5869]
[1726792682644,7.69662508,142.2,142.15,17.5869]
[1726792682812,7.69662508,142.19,142.15,17.5869]
[1726792683018,7.69662508,142.18,142.15,24.6215]
[1726792683216,7.69662508,142.17,142.15,24.6215]
[1726792683434,12.86403732,142.2,142.15,24.6215]
[1726792683648,13.52655996,142.19,142.15,24.6215]
[1726792683947,13.52655996,142.18,142.16,7.0342]
[1726792684244,7.69508766,142.17,142.16,7.0342]
[1726792685525,13.4523,142.25,142.19,17.5813]
[1726792685526,7.0299,142.25,142.19,17.5813]
[1726792685727,20.55716215,142.24,142.2,7.0322]
[1726792685933,7.6937476,142.23,142.2,7.0322]
[1726792686247,7.6937476,142.23,142.18,15.4498]
[1726792686248,7.6937476,142.22,142.18,15.4498]
[1726792686423,7.6937476,142.21,142.18,15.4498]
[1726792686748,7.6937476,142.2,142.18,15.4498]
[1726792686938,33.555494,142.26,142.18,15.4498]
[1726792686939,7.6937476,142.19,142.18,22.483]
[1726792687138,7.0309,142.23,142.18,22.483]
[1726792687317,13.51494879,142.22,142.18,22.483]
[1726792687521,7.68406008,142.21,142.18,22.483]
[1726792687725,7.68406008,142.2,142.18,22.483]
[1726792688017,7.0309,142.23,142.18,22.483]
[1726792688223,13.51137377,142.22,142.18,22.483]
[1726792688427,7.68095557,142.21,142.18,22.483]
[1726792688643,7.68095557,142.2,142.18,22.483]
[1726792689236,7.0304,142.24,142.2,7.0323]
[1726792689549,7.0308,142.23,142.19,7.0327]
[1726792689842,7.0308,142.23,142.18,40.0653]
[1726792690042,7.0322,142.21,142.16,7.0342]
[1726792690244,17.5753,142.25,142.16,7.0342]
[1726792690429,5.82957207,142.23,142.16,7.0342]
[1726792690832,23.776884,142.24,142.16,7.0342]
[1726792691323,17.5753,142.25,142.17,7.0337]
[1726792691529,7.0315,142.22,142.18,7.0332]
[1726792691940,7.0315,142.22,142.17,7.0337]
[1726792692457,7.68229242,142.21,142.17,7.0337]
[1726792692645,7.68229242,142.2,142.17,7.0337]
[1726792692827,7.68229242,142.2,142.17,17.5841]
[1726792693022,5.82911507,142.21,142.18,7.0331]
[1726792693246,7.68100512,142.2,142.17,24.6178]
[1726792693546,7.68109317,142.19,142.15,7.0344]
[1726792693751,7.68109317,142.18,142.15,7.0344]
[1726792693945,5.82911507,142.21,142.14,40.1025]
[1726792693946,7.68109317,142.17,142.14,40.1025]
[1726792694146,7.0328,142.19,142.15,7.0347]
[1726792694349,7.0348,142.15,142.11,0.365495]
[1726792694549,17.5829,142.19,142.11,7.402195]
[1726792694850,7.0353,142.14,142.11,0.365495]
[1726792695054,17.5829,142.19,142.11,0.365495]
[1726792695249,13.50488887,142.18,142.11,0.365495]
[1726792695550,7.0344,142.16,142.11,7.402095]
[1726792696149,7.67880933,142.15,142.11,7.402095]
[1726792696453,7.67880933,142.14,142.11,7.402095]
[1726792696639,7.0348,142.15,142.11,7.402095]
[1726792696825,7.67988207,142.14,142.11,7.402095]
[1726792697028,7.0348,142.15,142.11,7.402095]
[1726792697251,7.68029282,142.14,142.11,7.402095]
[1726792697426,7.68029282,142.13,142.11,0.365495]
[1726792697636,7.0353,142.14,142.11,0.365495]
[1726792697885,14.71639074,142.13,142.11,0.365495]
[1726792698067,14.71689074,142.12,142.11,0.365495]
[1726792699055,7.0363,142.12,142.11,0.365495]
[1726792699354,14.71754517,142.12,142.11,0.365495]
[1726792699928,7.68124517,142.12,142.11,0.365495]
[1726792702235,14.71754517,142.12,142.11,0.365495]
[1726792702735,14.71692133,142.12,142.11,0.365495]
[1726792705156,7.68062133,142.12,142.11,0.365495]
[1726792705854,7.6806569,142.12,142.11,0.365495]
[1726792707832,7.0351,142.15,142.11,0.365495]
[1726792708132,13.50574043,142.14,142.11,0.365495]
[1726792708332,7.67968092,142.13,142.11,0.365495]
[1726792708631,7.67968092,142.12,142.11,0.365495]
[1726792708828,7.0359,142.13,142.11,0.365495]
[1726792709051,7.67938686,142.12,142.11,0.365495]
[1726792711536,7.67938686,142.12,142.11,7.402295]
[1726792712037,7.67976358,142.12,142.11,0.365495]
[1726792712458,7.76121652,142.17,142.11,0.365495]
[1726792712643,7.0359,142.13,142.11,0.365495]
[1726792712960,7.0354,142.14,142.11,0.365495]
[1726792713270,7.67977757,142.13,142.11,0.365495]
[1726792713441,7.0349,142.15,142.11,0.365495]
[1726792713758,7.67982422,142.14,142.11,0.365495]
[1726792714069,7.67982422,142.13,142.11,0.365495]
[1726792714239,7.0353,142.14,142.11,0.365495]
[1726792714434,7.67977016,142.13,142.11,0.365495]
[1726792714650,7.0353,142.14,142.11,0.365495]
[1726792714858,7.67976639,142.13,142.11,0.365495]
[1726792715162,7.0353,142.14,142.11,0.365495]
[1726792715459,7.0363,142.12,142.11,0.365495]
[1726792715845,14.71546174,142.12,142.11,0.365495]
[1726792716464,7.67916174,142.12,142.11,0.365495]
[1726792717181,7.67916174,142.12,142.11,7.402295]
[1726792717463,7.035,142.15,142.11,0.365495]
[1726792717664,13.50592296,142.14,142.11,0.365495]
[1726792717863,7.035,142.15,142.11,7.402195]
[1726792717864,7.67936717,142.13,142.11,7.402195]
[1726792718060,7.0344,142.16,142.11,7.402195]
[1726792718362,20.54044135,142.15,142.11,7.402195]
[1726792718562,7.67914165,142.14,142.11,7.402195]
[1726792718763,7.67914165,142.13,142.11,7.402195]
[1726792718964,7.0348,142.15,142.11,7.402195]
[1726792719338,7.67912213,142.14,142.11,7.402195]
[1726792719565,7.67912213,142.13,142.11,7.402195]
[1726792719766,7.0348,142.15,142.11,7.402195]
[1726792719953,7.67898798,142.14,142.11,7.402195]
[1726792720154,7.67898798,142.13,142.11,7.402195]
[1726792720353,7.0348,142.15,142.11,7.402195]
[1726792720664,7.67893225,142.14,142.11,7.402195]
[1726792720861,7.67893225,142.13,142.11,7.402195]
[1726792721057,7.0348,142.15,142.11,7.402195]
[1726792721255,14.71465794,142.14,142.11,0.365495]
[1726792721565,7.67925794,142.13,142.11,0.365495]
[1726792721768,7.0359,142.13,142.11,0.365495]
[1726792724371,7.0349,142.15,142.11,7.402195]
[1726792724545,7.67870266,142.14,142.11,7.402195]
[1726792724745,7.67870266,142.13,142.11,7.402195]
[1726792725055,15.9736,142.2,142.12,7.0363]
[1726792725259,13.50664623,142.19,142.12,7.0363]
[1726792725460,13.50664623,142.18,142.12,7.0363]
[1726792725665,13.50664623,142.17,142.12,7.0363]
[1726792725873,13.50664623,142.17,142.11,24.993595]
[1726792725874,14.71408958,142.16,142.11,24.993595]
[1726792726049,7.67938958,142.15,142.11,24.993595]
[1726792726252,7.67938958,142.14,142.11,24.993595]
[1726792726573,7.67938958,142.13,142.11,24.993595]
[1726792726755,7.0348,142.15,142.11,24.993595]
[1726792726954,7.67988693,142.14,142.11,24.993595]
[1726792727273,7.0348,142.15,142.11,24.993595]
[1726792727459,15.9736,142.2,142.13,24.6246]
[1726792727460,7.6805438,142.14,142.13,24.6246]
[1726792727660,7.0337,142.18,142.13,24.6246]
[1726792727877,13.50900127,142.17,142.13,24.6246]
[1726792728066,7.0337,142.18,142.13,24.6246]
[1726792728067,7.68102735,142.16,142.13,24.6246]
[1726792728265,7.68102735,142.15,142.13,24.6246]
[1726792728450,7.0337,142.18,142.13,24.6246]
[1726792728650,13.50912152,142.17,142.13,24.6246]
[1726792728850,7.68104746,142.16,142.14,7.0352]
[1726792729072,7.68104746,142.15,142.14,7.0352]
[1726792729269,7.68104746,142.15,142.11,0.365495]
[1726792729471,7.0349,142.15,142.11,0.365495]
[1726792729774,17.5825,142.19,142.11,0.365495]
[1726792729775,7.0354,142.14,142.11,0.365495]
[1726792730572,15.9736,142.2,142.11,0.365495]
[1726792730573,17.5848,142.17,142.11,0.365495]
[1726792730780,15.26726072,142.16,142.11,0.365495]
[1726792731074,7.0363,142.12,142.11,0.365495]
[1726792731261,14.71752603,142.12,142.11,0.365495]
[1726792731746,20.54253864,142.12,142.11,0.365495]
[1726792735960,44.31942264,142.12,142.11,0.365495]
[1726792736153,32.94932044,142.12,142.11,9.5e-05]
[1726792736359,40.63703978,142.12,142.11,9.5e-05]
[1726792736560,66.46120973,142.12,142.11,9.5e-05]
[1726792736769,66.46139317,142.12,142.11,9.5e-05]
[1726792737870,44.70154329,142.12,142.11,9.5e-05]
[1726792738071,44.45056329,142.12,142.11,9.5e-05]
[1726792738277,44.32507329,142.12,142.11,9.5e-05]
[1726792738482,20.54818929,142.12,142.11,9.5e-05]
[1726792739975,46.08456374,142.12,142.11,9.5e-05]
[1726792741581,44.32507329,142.12,142.11,9.5e-05]
[1726792741878,20.54818929,142.12,142.11,9.5e-05]
[1726792742577,14.72401934,142.12,142.11,9.5e-05]
[1726792742754,13.51170612,142.12,142.11,9.5e-05]
[1726792743670,7.68771934,142.12,142.11,9.5e-05]
[1726792747572,7.68771934,142.12,142.11,7.036895]
[1726792748382,7.0339,142.17,142.13,7.0357]
[1726792748775,7.68416761,142.16,142.12,24.6265]
[1726792749075,14.71936761,142.15,142.11,9.5e-05]
[1726792749276,7.68416761,142.14,142.11,9.5e-05]
[1726792749478,7.68416761,142.13,142.11,9.5e-05]
[1726792749787,7.68416761,142.12,142.11,9.5e-05]
[1726792750686,7.68405574,142.12,142.11,9.5e-05]
[1726792751367,7.68405574,142.12,142.11,7.036895]
[1726792751675,7.0345,142.16,142.12,7.0362]
[1726792751869,7.68324444,142.15,142.12,7.0362]
[1726792752070,7.68324586,142.14,142.12,7.0362]
[1726792752267,7.68324586,142.13,142.12,7.0362]
[1726792752480,7.0345,142.16,142.12,7.0362]
[1726792752682,7.68337273,142.15,142.12,7.0362]
[1726792752988,7.0345,142.16,142.12,7.0362]
[1726792753188,7.68338574,142.14,142.12,7.0362]
[1726792753383,7.68338574,142.13,142.12,7.0362]
[1726792753775,7.68338574,142.13,142.11,9.5e-05]
[1726792753983,7.68338574,142.12,142.11,9.5e-05]
[1726792754374,14.71968574,142.12,142.11,9.5e-05]
[1726792755079,14.71866076,142.12,142.11,9.5e-05]
[1726792756983,16.47825018,142.12,142.11,9.5e-05]
[1726792758273,16.47457371,142.12,142.11,9.5e-05]
[1726792759375,40.25145771,142.12,142.11,9.5e-05]
[1726792760587,38.49186829,142.12,142.11,9.5e-05]
[1726792761085,14.71498429,142.12,142.11,9.5e-05]
[1726792761897,7.0363,142.12,142.11,9.5e-05]
[1726792762070,14.71381724,142.12,142.11,9.5e-05]
[1726792762267,7.67751724,142.12,142.11,9.5e-05]
[1726792762886,7.67751724,142.12,142.11,7.036895]
[1726792764275,7.67751724,142.12,142.11,9.5e-05]
[1726792764772,14.71437819,142.12,142.11,9.5e-05]
[1726792768376,14.7140457,142.12,142.11,9.5e-05]
[1726792770800,14.7140457,142.12,142.08,7.0382]
[1726792770981,7.6777457,142.11,142.08,7.0382]
[1726792771302,7.6777457,142.1,142.08,7.0382]
[1726792771488,7.0363,142.12,142.08,7.0382]
[1726792771489,7.6777457,142.09,142.08,7.0382]
[1726792771698,7.0363,142.12,142.08,7.0382]
[1726792771891,7.67600164,142.09,142.08,7.0382]
[1726792772089,7.67600164,142.09,142.08,7.16369]
[1726792772309,7.0347,142.16,142.11,7.0367]
[1726792772487,7.67889189,142.15,142.11,7.0367]
[1726792772814,7.67889189,142.14,142.1,24.6297]
[1726792773101,7.67889189,142.13,142.11,7.0367]
[1726792773309,7.67889189,142.13,142.08,0.37647]
[1726792773310,22.7148694,142.18,142.13,7.0353]
[1726792773482,14.71397693,142.17,142.12,17.5902]
[1726792773684,7.68007693,142.16,142.12,24.6264]
[1726792773908,7.68007693,142.15,142.12,24.6264]
[1726792774107,7.68007693,142.14,142.12,24.6264]
[1726792774313,7.68007693,142.13,142.12,24.6264]
[1726792774897,7.0339,142.17,142.12,24.6264]
[1726792774898,0.2508694,142.18,142.16,7.0342]
[1726792775096,7.68309803,142.17,142.16,7.0342]
[1726792775299,0.2508694,142.18,142.17,7.0338]
[1726792775499,7.93593887,142.18,142.17,7.0338]
[1726792776305,0.2508694,142.18,142.17,57.28478]
[1726792776498,0.2508694,142.18,142.17,73.90258]
[1726792776902,0.2508694,142.18,142.17,101.83973214]
[1726792779814,0.2508694,142.18,142.17,138.56961614]
[1726792780003,0.2508694,142.18,142.17,145.61661614]
[1726792780794,0.2508694,142.18,142.17,94.79273214]
[1726792780995,0.2508694,142.18,142.17,101.83973214]
[1726792782521,0.2508694,142.18,142.17,73.90258]
[1726792782815,0.2508694,142.18,142.17,73.6516]
[1726792783317,0.2508694,142.18,142.17,66.6178]
[1726792783505,0.2508694,142.18,142.17,16.6178]
[1726792784119,0.2508694,142.18,142.17,23.6516]
[1726792784812,0.2508694,142.18,142.17,23.77709]
[1726792787930,0.2508694,142.18,142.17,125.61661614]
[1726792790621,0.2508694,142.18,142.17,145.61661614]
[1726792795026,0.2508694,142.22,142.21,105.811754]
[1726792795331,0.2508694,142.22,142.21,118.764754]
[1726792795927,0.2508694,142.22,142.21,125.811754]
[1726792796424,0.2508694,142.26,142.25,24.6044]
[1726792796945,0.2508694,142.26,142.25,31.6514]
[1726792797727,0.2508694,142.26,142.25,17.82558]
[1726792797931,0.2508694,142.26,142.25,24.85538]
[1726792801015,0.2508694,142.26,142.23,14.0777]
[1726792801333,0.2508694,142.26,142.22,32.6984]
[1726792801334,0.2508694,142.26,142.22,17.5776]
[1726792801512,0.2508694,142.26,142.21,50.0]
[1726792801711,7.2802694,142.26,142.21,57.0314]
[1726792802329,7.2802694,142.26,142.22,7.0312]
[1726792802709,0.2508694,142.26,142.23,24.6074]
[1726792803043,0.2508694,142.26,142.23,17.5766]
[1726792804433,7.2803694,142.26,142.23,17.5766]
[1726792804827,0.2508694,142.26,142.23,17.5766]
[1726792805530,0.2508694,142.26,142.24,7.03]
[1726792806326,7.2801694,142.26,142.22,0.25098]
[1726792807427,7.2801694,142.26,142.22,7.28218]
[1726792808738,0.2508694,142.26,142.22,7.28218]
[1726792808925,0.2508694,142.26,142.23,7.0308]
[1726792809434,0.2508694,142.26,142.25,7.0298]
[1726792809736,0.2508694,142.26,142.25,7.28078]
[1726792812750,0.2508694,142.26,142.25,8.68631326]
[1726792813258,0.2508694,142.26,142.25,64.45327]
[1726792813546,0.2508694,142.26,142.25,81.183154]
[1726792813731,0.3129664,142.31,142.3,7.0274]
[1726792814050,0.3129664,142.31,142.29,24.5967]
[1726792814436,0.3129664,142.31,142.29,31.6437]
[1726792814961,0.3129664,142.31,142.3,0.25098]
[1726792815261,0.3129664,142.31,142.3,7.27838]
[1726792817336,0.3129664,142.31,142.3,57.40387]
[1726792818246,0.3129664,142.31,142.3,85.21553214]
[1726792818443,0.3129664,142.31,142.3,108.99241614]
[1726792819254,0.3129664,142.31,142.3,85.21553214]
[1726792819765,0.3129664,142.31,142.3,108.99241614]
[1726792819947,0.3129664,142.31,142.3,130.39716912]
[1726792820153,0.3129664,142.31,142.3,128.99241614]
[1726792821258,0.3129664,142.31,142.3,185.91011614]
[1726792821464,0.3429196,142.35,142.34,82.01237]
[1726792821638,8.01275388,142.35,142.34,139.50691614]
[1726792821842,0.3129664,142.39,142.38,0.37647]
[1726792821843,0.062097,142.39,142.38,0.37647]
[1726792822142,0.062097,142.39,142.38,69.50001614]
[1726792822363,0.062097,142.39,142.38,76.54701614]
[1726792822660,0.062097,142.39,142.38,45.72313214]
[1726792822973,0.062097,142.39,142.38,24.95847]
[1726792823355,0.062097,142.39,142.38,32.00547]
[1726792823668,0.062097,142.39,142.38,24.98207]
[1726792823966,0.062097,142.39,142.38,17.93507]
[1726792824139,0.062097,142.39,142.38,0.25098]
[1726792824342,0.062097,142.39,142.38,0.12549]
[1726792824645,0.062097,142.39,142.36,0.25098]
[1726792824847,0.062097,142.39,142.36,7.27528]
[1726792825048,0.062097,142.39,142.36,7.14979]
[1726792825359,0.062097,142.39,142.36,0.12549]
[1726792826055,0.062097,142.39,142.36,7.14989]
[1726792826365,0.062097,142.39,142.37,0.12549]
[1726792827545,0.062097,142.39,142.38,50.12549]
[1726792827847,0.062097,142.39,142.38,57.39987]
[1726792828266,0.062097,142.39,142.38,81.176754]
[1726792828564,0.062097,142.39,142.38,88.223754]
[1726792832767,0.062097,142.39,142.37,17.559]
[1726792832983,0.062097,142.39,142.37,24.5828]
[1726792834051,0.062097,142.39,142.36,57.0243]
[1726792834250,0.062097,142.39,142.34,67.563]
[1726792834251,7.084997,142.39,142.34,67.563]
[1726792834482,0.062097,142.39,142.34,67.563]
[1726792834667,0.062097,142.39,142.35,7.0247]
[1726792834870,0.062097,142.39,142.35,7.047]
[1726792835043,0.062097,142.39,142.36,50.0]
[1726792835249,0.062097,142.39,142.37,7.0239]
[1726792835744,0.062097,142.39,142.38,0.12549]
[1726792836465,0.062097,142.39,142.35,0.12549]
[1726792836671,7.085097,142.39,142.35,0.25098]
[1726792836875,7.0234,142.38,142.34,14.0723]
[1726792837372,7.085097,142.39,142.35,7.0248]
[1726792838067,7.085097,142.39,142.32,50.0]
[1726792838068,7.0252,142.35,142.32,50.0]
[1726792838279,21.6901,142.38,142.3,67.5683]
[1726792838461,21.6901,142.38,142.3,74.6153]
[1726792839373,7.0243,142.37,142.32,7.0261]
[1726792839683,7.0243,142.37,142.33,0.25098]
[1726792841167,28.7136,142.38,142.33,57.27688]
[1726792841371,7.024,142.37,142.33,0.25098]
[1726792841578,7.0245,142.36,142.32,0.25098]
[1726792842154,7.0239,142.37,142.32,7.27718]
[1726792843684,28.7136,142.38,142.34,0.25098]
[1726792844274,28.7136,142.38,142.34,0.12549]
[1726792844582,21.6901,142.38,142.32,24.6121]
[1726792844970,21.6901,142.38,142.32,17.5651]
[1726792845162,1.75606094,142.37,142.31,0.25098]
[1726792845665,7.025,142.35,142.31,0.25098]
[1726792845873,7.0245,142.36,142.31,7.27778]
[1726792846186,7.0245,142.36,142.32,0.12549]
[1726792846363,7.024,142.37,142.32,14.19879]
[1726792848063,7.024,142.37,142.33,1.4048084]
[1726792848479,7.024,142.37,142.32,14.19879]
[1726792848673,21.6901,142.38,142.34,7.0253]
[1726792849600,15.5896,142.38,142.35,7.27588]
[1726792849761,7.085497,142.39,142.35,7.27588]
[1726792851577,7.085497,142.39,142.35,57.27588]
[1726792853683,7.0236,142.38,142.34,7.0253]
[1726792853985,7.0241,142.37,142.33,17.564]
[1726792854372,0.062097,142.39,142.31,7.0268]
[1726792854373,1.81810995,142.39,142.31,7.0268]
[1726792854580,5.83289971,142.38,142.3,24.5951]
[1726792854774,7.025,142.35,142.3,31.6421]
[1726792855370,7.025,142.35,142.31,7.0269]
[1726792856388,7.0245,142.36,142.32,0.25098]
[1726792857283,5.83232312,142.35,142.32,0.25098]
[1726792857486,7.0245,142.36,142.32,0.25098]
[1726792857683,5.83232312,142.35,142.32,0.25098]
[1726792857987,7.0245,142.36,142.32,0.25098]
[1726792858168,5.83232312,142.35,142.32,0.25098]
[1726792858368,7.0245,142.36,142.32,0.25098]
[1726792858564,5.83232312,142.35,142.32,0.25098]
[1726792858766,7.0245,142.36,142.32,0.25098]
[1726792858978,5.83232428,142.35,142.32,0.25098]
[1726792859306,7.0245,142.36,142.32,0.25098]
[1726792859664,5.83232312,142.35,142.32,0.25098]
[1726792860183,11.66464624,142.35,142.32,0.25098]
[1726792860781,5.83232312,142.34,142.32,0.25098]
[1726792860996,12.85732312,142.35,142.32,0.25098]
[1726792861189,5.83279167,142.34,142.32,7.27728]
[1726792861492,5.83232312,142.35,142.32,7.27728]
[1726792861693,5.83232312,142.35,142.32,0.25098]
[1726792861895,5.83282432,142.34,142.32,0.25098]
[1726792862187,5.83232312,142.35,142.32,0.25098]
[1726792862398,5.83293749,142.34,142.32,0.25098]
[1726792862575,5.83232312,142.35,142.32,0.25098]
[1726792862774,5.83275123,142.34,142.32,0.25098]
[1726792863000,5.83232312,142.35,142.32,7.27698]
[1726792863194,5.83281576,142.34,142.32,7.27698]
[1726792863372,5.83232312,142.35,142.32,7.27698]
[1726792863568,5.83246489,142.34,142.32,7.27698]
[1726792863790,5.83232312,142.35,142.32,7.27698]
[1726792863999,5.83246489,142.34,142.32,7.27698]
[1726792864500,7.0244,142.36,142.32,7.27698]
[1726792864968,0.062097,142.39,142.3,24.74039]
[1726792864969,7.0254,142.34,142.3,24.74039]
[1726792865174,7.0254,142.34,142.3,24.6149]
[1726792865586,5.83246993,142.33,142.3,24.6149]
[1726792865778,0.062097,142.39,142.3,74.6149]
[1726792865779,7.0251,142.35,142.3,74.6149]
[1726792865977,5.83188221,142.34,142.3,74.6149]
[1726792866176,7.0245,142.36,142.32,7.0263]
[1726792866385,5.83230772,142.35,142.32,7.0263]
[1726792866675,5.83230772,142.34,142.31,7.27768]
[1726792866875,7.0245,142.36,142.32,0.12549]
[1726792867093,5.83247555,142.35,142.32,0.12549]
[1726792867404,5.83247555,142.34,142.32,0.12549]
[1726792867696,7.0245,142.36,142.32,0.12549]
[1726792867995,7.0262,142.33,142.29,7.0277]
[1726792868500,21.6749,142.36,142.3,7.0274]
[1726792868703,21.6749,142.36,142.31,7.0268]
[1726792868704,7.025,142.35,142.31,7.0268]
[1726792869192,11.66123372,142.32,142.31,7.0268]
[1726792869506,5.83057805,142.32,142.31,7.40327]
[1726792870915,5.83057805,142.32,142.31,0.12549]
[1726792871102,5.83057805,142.32,142.26,17.5727]
[1726792871308,12.85779852,142.31,142.27,7.0287]
[1726792871614,40.92642621,142.3,142.28,7.0282]
[1726792871815,22.87283765,142.29,142.28,7.0282]
[1726792872392,22.87283765,142.29,142.28,7.15369]
[1726792872697,22.87283765,142.29,142.28,7.27918]
[1726792873105,8.79724525,142.29,142.28,7.27918]
[1726792873306,8.70356398,142.31,142.29,7.27878]
[1726792873510,5.83057805,142.32,142.29,7.27878]
[1726792873702,5.83057805,142.32,142.3,7.0273]
[1726792874106,7.0254,142.34,142.3,7.0273]
[1726792874603,13.4232,142.35,142.31,7.0269]
[1726792874930,5.83160489,142.34,142.32,8.43119268]
[1726792875105,7.0245,142.36,142.33,1.40491421]
[1726792875416,5.83159186,142.35,142.33,7.0259]
[1726792875717,7.0235,142.38,142.33,7.0259]
[1726792875922,5.83169563,142.34,142.33,7.27688]
[1726792876394,5.83169563,142.37,142.33,7.27688]
[1726792876596,5.83169563,142.36,142.33,7.27688]
[1726792876810,7.0235,142.38,142.33,7.27688]
[1726792877008,5.832504,142.37,142.33,7.27688]
[1726792877203,5.832504,142.36,142.33,7.27688]
[1726792877521,5.832504,142.35,142.33,7.27688]
[1726792877726,7.0235,142.38,142.33,7.27688]
[1726792877896,5.83251578,142.37,142.33,7.27688]
[1726792878219,5.83251578,142.36,142.34,67.81378]
[1726792878407,0.062097,142.39,142.36,0.25098]
[1726792878617,5.8334592,142.38,142.36,7.27518]
[1726792878923,5.8334592,142.37,142.36,7.27518]
[1726792879630,5.8337237,142.37,142.36,7.27518]
[1726792879798,5.8337237,142.38,142.36,7.27518]
[1726792879999,5.8337237,142.37,142.36,7.27518]
[1726792881838,0.062097,142.39,142.37,7.0239]
[1726792882034,5.83332673,142.38,142.37,7.27488]
[1726792882207,0.062097,142.39,142.37,14.44737]
[1726792882406,0.062097,142.39,142.38,7.27438]
[1726792882599,0.062097,142.39,142.38,57.39987]
[1726792883101,0.062097,142.39,142.38,64.44687]
[1726792883307,0.062097,142.39,142.38,65.85101685]
[1726792883510,0.062097,142.39,142.38,89.62790085]
[1726792883725,0.062097,142.39,142.38,88.223754]
[1726792884109,7.0205,142.44,142.38,88.223754]
[1726792884110,7.0205,142.44,142.41,0.12549]
[1726792884315,0.342767,142.42,142.41,0.12549]
[1726792884625,6.1781864,142.42,142.41,0.12549]
[1726792885401,0.342767,142.42,142.41,0.12549]
[1726792885626,0.342767,142.42,142.41,0.25098]
[1726792887015,0.342767,142.42,142.41,14.44537]
[1726792897054,0.342767,142.42,142.41,32.57912871]
[1726792897344,0.342767,142.42,142.41,46.328154]
[1726792897715,0.342767,142.42,142.41,66.328154]
[1726792897932,0.342767,142.42,142.41,67.73170497]
[1726792898134,0.342767,142.42,142.41,73.375154]
[1726792898341,0.342767,142.42,142.41,66.328154]